bitfinex/quotes_ETHUSD_20250123
["timestamp","ask_amount","ask_price","bid_price","bid_amount"]
[1737637117983,3.12213,3203.0,3202.4,0.7832]
[1737637118152,3.12199,3203.1,3202.4,0.7832]
[1737637118351,3.1222,3202.9,3202.4,0.7832]
[1737637119189,3.1223,3202.8,3202.4,0.7832]
[1737637119388,3.12243,3202.7,3202.4,1.173803]
[1737637119570,3.55,3203.4,3202.4,0.7832]
[1737637119774,3.12282,3202.3,3201.8,0.7917]
[1737637119978,3.12283,3202.3,3201.8,0.7917]
[1737637120487,3.12287,3202.2,3201.8,0.7917]
[1737637120688,3.12287,3202.2,3201.8,1.17087]
[1737637120861,3.12283,3202.3,3201.8,1.17087]
[1737637121063,0.55,3202.7,3201.8,1.17087]
[1737637121263,0.55,3202.7,3201.8,0.7917]
[1737637121452,3.12284,3202.3,3201.8,0.7917]
[1737637121652,3.12288,3202.2,3201.8,0.7917]
[1737637121852,3.12284,3202.3,3201.8,0.7917]
[1737637123083,3.12256,3202.5,3201.9,3.12312]
[1737637123283,3.12239,3202.7,3202.0,3.514502]
[1737637123689,3.12239,3202.7,3202.0,0.391482]
[1737637123887,3.12258,3202.5,3202.0,0.391482]
[1737637124997,3.12269,3202.4,3202.0,0.391482]
[1737637125317,3.12269,3202.4,3201.8,0.7917]
[1737637125883,3.12284,3202.3,3201.8,0.7917]
[1737637126566,3.12258,3202.5,3201.8,3.91491]
[1737637127325,3.12238,3202.7,3202.0,3.12302]
[1737637127468,5.39,3203.5,3202.3,0.7513]
[1737637127669,3.12218,3202.9,3202.3,0.7513]
[1737637127875,3.12227,3202.8,3202.3,0.7513]
[1737637128415,8.51166,3203.5,3202.3,0.7513]
[1737637128718,3.12216,3203.0,3202.3,0.7513]
[1737637128876,3.12217,3202.9,3202.4,0.387413]
[1737637129270,3.1223,3202.8,3202.4,0.387413]
[1737637129923,3.1223,3202.8,3202.3,0.7513]
[1737637130072,3.12238,3202.7,3202.3,0.7513]
[1737637130327,3.12265,3202.4,3202.3,0.7513]
[1737637132066,3.12258,3202.5,3202.3,0.7513]
[1737637133747,3.12265,3202.4,3202.3,0.7513]
[1737637134567,3.1224,3202.7,3202.3,0.7513]
[1737637134736,3.12254,3202.6,3202.3,0.7513]
[1737637134938,3.1224,3202.7,3202.3,0.7513]
[1737637134939,3.12261,3202.5,3202.3,0.7513]
[1737637135654,3.12261,3202.5,3201.9,0.7754]
[1737637135852,3.12261,3202.5,3201.9,1.477886]
[1737637136542,3.1224,3202.7,3202.0,3.12302]
[1737637136543,0.55,3202.6,3202.0,3.12302]
[1737637136939,3.1224,3202.7,3201.9,1.477886]
[1737637137148,3.1224,3202.7,3202.2,3.12284]
[1737637137352,3.1224,3202.7,3202.3,0.7946]
[1737637139053,3.12242,3202.7,3202.3,0.7946]
[1737637140282,0.55,3202.8,3202.3,0.7946]
[1737637140774,3.67234,3202.8,3202.3,0.7946]
[1737637140975,6.88799,3203.4,3202.3,0.7946]
[1737637140976,3.12197,3203.2,3202.6,3.12246]
[1737637141185,3.12193,3203.2,3202.6,3.12246]
[1737637141384,6.12197,3203.1,3202.6,3.12246]
[1737637142782,6.12189,3203.2,3202.6,3.12246]
[1737637143150,3.12199,3203.1,3202.6,3.12246]
[1737637144080,6.12188,3203.2,3202.6,3.12246]
[1737637144285,6.12188,3203.2,3202.6,3.746968]
[1737637144662,3.12198,3203.1,3202.6,3.746968]
[1737637145317,6.24403,3203.1,3202.6,0.624508]
[1737637145580,3.12208,3203.0,3202.4,3.12262]
[1737637145786,3.12208,3203.0,3202.4,6.2452]
[1737637146286,3.12208,3203.0,3202.4,3.12258]
[1737637146463,6.12194,3203.2,3202.5,3.12255]
[1737637146873,3.12204,3203.1,3202.5,3.12255]
[1737637148608,6.2441,3203.1,3202.5,3.12255]
[1737637148750,3.12204,3203.1,3202.5,3.12255]
[1737637149107,3.12204,3203.1,3202.5,3.826537]
[1737637149317,3.12204,3203.1,3202.5,3.826477]
[1737637149608,3.12204,3203.1,3202.5,3.826457]
[1737637149809,3.12183,3203.3,3202.6,3.1224]
[1737637150013,3.12183,3203.3,3202.8,3.12224]
[1737637150178,3.12183,3203.3,3202.7,0.8212]
[1737637150380,8.51162,3203.5,3202.7,4.4082987]
[1737637150697,3.12191,3203.2,3202.7,4.4082987]
[1737637151561,3.12212,3203.0,3202.7,1.2859587]
[1737637151921,3.12212,3203.0,3202.7,0.8212]
[1737637152460,3.12218,3202.9,3202.7,0.8212]
[1737637153313,3.12226,3202.8,3202.6,3.22705506]
[1737637153467,3.12236,3202.7,3202.6,3.22705506]
[1737637154492,3.12265,3202.4,3202.3,4.84596496]
[1737637156302,3.12265,3202.4,3202.3,5.62872611]
[1737637157808,3.12265,3202.4,3202.3,0.78276115]
[1737637158012,3.12265,3202.4,3202.2,0.8231]
[1737637158811,6.24501,3202.6,3202.2,0.8231]
[1737637159716,3.12247,3202.6,3202.2,0.8231]
[1737637159914,3.12257,3202.5,3202.2,0.8231]
[1737637160110,3.12275,3202.3,3201.9,4.05655506]
[1737637160352,3.12295,3202.1,3202.0,0.5675465]
[1737637160491,3.12295,3202.1,3201.9,4.05655506]
[1737637160999,3.12295,3202.1,3201.9,0.8295]
[1737637161401,3.12304,3202.0,3201.9,0.8295]
[1737637161602,3.12304,3202.0,3201.7,0.00313]
[1737637161603,3.12321,3201.9,3201.7,0.00313]
[1737637161790,3.12321,3201.9,3201.7,0.40862851]
[1737637162114,3.12304,3202.1,3201.7,0.40862851]
[1737637162314,3.12287,3202.2,3201.7,0.40862851]
[1737637163514,3.12295,3202.1,3201.7,0.40862851]
[1737637164525,3.12295,3202.1,3201.8,0.11401442]
[1737637165418,8.51214,3203.0,3201.9,0.11401442]
[1737637165618,3.12217,3202.9,3202.0,1.14062544]
[1737637165795,3.12227,3202.8,3202.2,3.12277]
[1737637166437,3.12265,3202.5,3202.1,0.11401442]
[1737637167428,3.12265,3202.5,3202.2,0.11401442]
[1737637169010,3.12265,3202.5,3202.0,3.93994]
[1737637169216,3.12265,3202.5,3202.1,0.393994]
[1737637171845,3.12265,3202.5,3202.0,0.8169]
[1737637171846,0.55,3202.5,3202.0,0.8169]
[1737637171993,3.12293,3202.2,3202.0,0.8169]
[1737637172195,3.12295,3202.1,3202.0,0.8169]
[1737637173128,3.12293,3202.2,3202.0,0.8169]
[1737637179541,3.12268,3202.4,3202.0,0.8169]
[1737637182546,3.12276,3202.3,3202.0,0.8169]
[1737637182919,6.1577,3203.0,3202.0,4.333873]
[1737637183106,3.12246,3202.6,3202.0,4.333873]
[1737637184045,3.12246,3202.6,3202.0,7.456853]
[1737637184215,3.12246,3202.6,3202.0,4.333873]
[1737637187226,6.24465,3202.8,3202.2,3.12284]
[1737637187420,3.1223,3202.8,3202.3,0.312284]
[1737637188107,3.12242,3202.7,3202.3,0.312284]
[1737637188822,3.12242,3202.7,3202.1,3.12289]
[1737637190036,3.12242,3202.7,3202.0,4.333873]
[1737637190243,3.12242,3202.7,3202.2,3.12283]
[1737637191515,3.12242,3202.7,3202.0,4.333873]
[1737637191715,3.12242,3202.7,3202.0,7.456843]
[1737637192025,3.12242,3202.7,3202.1,3.8686043]
[1737637192224,3.12246,3202.6,3202.1,3.8686043]
[1737637195319,3.12256,3202.5,3202.1,0.7456843]
[1737637195867,3.12256,3202.5,3201.7,0.00313]
[1737637195868,3.12285,3202.2,3201.8,0.8002]
[1737637196340,3.12277,3202.3,3201.8,3.92343]
[1737637196676,3.12276,3202.3,3201.8,3.92343]
[1737637196852,3.12276,3202.3,3201.8,0.8002]
[1737637197216,3.12286,3202.2,3201.8,0.8002]
[1737637197546,3.12267,3202.4,3201.9,0.392661]
[1737637197759,3.12262,3202.5,3202.0,3.12303]
[1737637198951,3.12245,3202.7,3202.1,3.12294]
[1737637199153,3.12212,3203.0,3202.2,3.89762]
[1737637199333,3.12232,3202.8,3202.3,0.389762]
[1737637200514,3.12218,3202.9,3202.3,3.512432]
[1737637200916,3.12238,3202.7,3202.3,0.389762]
[1737637201138,3.12238,3202.7,3202.2,0.7748]
[1737637201343,3.12247,3202.6,3202.2,0.7748]
[1737637201539,3.12296,3202.1,3201.9,0.7941]
[1737637201741,3.12296,3202.1,3201.7,0.00313]
[1737637201941,3.9414,3202.5,3201.7,0.00313]
[1737637202144,3.12232,3202.8,3202.2,3.12284]
[1737637202356,5.39,3203.7,3202.2,0.703128]
[1737637202357,3.12193,3203.2,3202.2,0.703128]
[1737637202689,3.12197,3203.1,3202.5,3.12247]
[1737637203118,3.12181,3203.3,3202.5,3.12247]
[1737637203319,3.12181,3203.3,3201.9,0.5]
[1737637203320,0.8274,3204.1,3203.4,3.12167]
[1737637203554,3.1208,3204.3,3203.5,3.12156]
[1737637203759,3.12164,3203.5,3203.1,0.7738]
[1737637203930,3.12179,3203.3,3203.1,0.7738]
[1737637204131,6.2433,3203.5,3203.1,0.7738]
[1737637204337,3.12164,3203.5,3203.1,0.7738]
[1737637204860,3.12189,3203.2,3202.9,0.376]
[1737637205162,3.12154,3203.6,3202.9,3.49809]
[1737637205357,3.1216,3203.5,3202.9,3.49809]
[1737637206058,3.1217,3203.4,3202.9,3.49809]
[1737637206261,3.12148,3203.6,3202.9,0.376]
[1737637206464,3.12201,3203.1,3202.9,0.376]
[1737637206660,3.1218,3203.3,3202.9,0.376]
[1737637206868,3.1218,3203.3,3202.7,3.12235]
[1737637207060,3.12162,3203.5,3202.8,3.12225]
[1737637207264,3.1216,3203.5,3202.9,3.12216]
[1737637207467,3.12143,3203.7,3203.0,3.122]
[1737637207636,5.39,3203.8,3203.1,0.752]
[1737637207637,3.12149,3203.6,3203.1,0.752]
[1737637207831,8.51131,3203.8,3203.1,0.752]
[1737637208055,8.51131,3203.8,3203.2,3.12181]
[1737637208278,8.51131,3203.8,3203.2,3.821396]
[1737637208566,5.39,3203.8,3203.2,3.821396]
[1737637208735,5.39,3203.8,3203.3,3.12169]
[1737637210072,5.39,3203.8,3203.2,3.821396]
[1737637210370,3.12101,3204.1,3203.4,3.12166]
[1737637210532,3.12098,3204.2,3203.6,3.94418]
[1737637210969,3.12103,3204.1,3203.6,3.94418]
[1737637211131,3.1211,3204.0,3203.6,0.8227]
[1737637211969,3.12119,3203.9,3203.6,0.8227]
[1737637213133,3.88756,3204.3,3203.6,3.94412]
[1737637213456,3.12091,3204.2,3203.6,4.650689]
[1737637213649,3.12091,3204.2,3203.7,3.12138]
[1737637213866,3.12091,3204.2,3203.6,1.529279]
[1737637214052,3.12101,3204.1,3203.6,0.8227]
[1737637214871,3.1211,3204.0,3203.6,0.8227]
[1737637215339,3.12091,3204.2,3203.6,3.94417]
[1737637215540,3.12091,3204.2,3203.6,0.8227]
[1737637216595,3.1211,3204.0,3203.6,0.8227]
[1737637216825,3.12091,3204.2,3203.6,4.3386]
[1737637217889,8.51054,3204.6,3203.9,3.12118]
[1737637218095,8.51054,3204.6,3204.0,3.12108]
[1737637219800,3.12054,3204.6,3204.0,3.12108]
[1737637222463,3.12054,3204.6,3204.1,0.826]
[1737637222690,3.12054,3204.6,3204.2,0.394708]
[1737637223280,3.12016,3205.0,3204.2,3.515598]
[1737637223563,3.12016,3205.0,3204.3,3.12073]
[1737637223977,3.12023,3204.9,3204.3,3.12073]
[1737637225121,0.3255332,3205.3,3204.4,0.7792]
[1737637225316,3.11998,3205.2,3204.7,0.7792]
[1737637225879,3.12008,3205.1,3204.7,0.7792]
[1737637226510,3.12061,3204.5,3203.9,3.12116]
[1737637226711,3.1208,3204.4,3203.7,3.87891]
[1737637227012,5.39,3205.4,3203.8,0.465434]
[1737637227013,3.12115,3204.0,3203.8,0.465434]
[1737637227170,3.12115,3204.0,3203.4,0.7576]
[1737637227371,3.1214,3203.7,3203.4,0.7576]
[1737637228303,3.12126,3203.9,3203.4,0.7576]
[1737637229110,3.1213,3203.8,3203.4,0.7576]
[1737637229414,0.7819,3204.0,3203.4,0.7576]
[1737637229815,3.12116,3204.0,3203.4,0.7576]
[1737637230017,3.12122,3203.9,3203.4,0.7576]
[1737637230221,3.12122,3203.9,3203.5,0.387931]
[1737637230383,3.12129,3203.8,3203.5,0.387931]
[1737637230575,3.12116,3204.0,3203.5,0.387931]
[1737637231418,3.1209,3204.2,3203.5,0.387931]
[1737637231419,3.1209,3204.2,3203.7,0.8192]
[1737637231617,3.12073,3204.4,3203.7,0.8192]
[1737637231834,3.12073,3204.4,3203.8,3.515356]
[1737637232403,3.1208,3204.3,3203.8,3.515356]
[1737637233930,3.1208,3204.3,3203.8,0.394066]
[1737637234243,3.12099,3204.2,3203.8,0.394066]
[1737637235743,6.24197,3204.2,3203.8,0.394066]
[1737637236063,3.12131,3203.8,3203.3,0.7908]
[1737637236349,3.12109,3204.0,3203.3,0.7908]
[1737637236511,3.12134,3203.8,3203.3,3.7908]
[1737637237405,3.12134,3203.8,3203.3,0.7908]
[1737637237749,3.12134,3203.8,3203.3,3.91256]
[1737637238052,3.12134,3203.8,3203.3,4.615995]
[1737637241251,3.12134,3203.8,3203.3,1.494235]
[1737637241646,3.12134,3203.8,3203.3,0.7908]
[1737637241960,6.24272,3203.8,3203.3,0.7908]
[1737637242143,3.12134,3203.8,3203.3,0.7908]
[1737637243164,0.7905,3204.1,3203.3,0.7908]
[1737637243319,3.12164,3203.5,3203.0,0.7797]
[1737637243523,3.12164,3203.5,3203.1,0.37797]
[1737637243827,3.12168,3203.4,3203.1,0.37797]
[1737637244335,3.12168,3203.4,3203.0,0.7797]
[1737637244563,3.12173,3203.4,3203.0,0.7797]
[1737637245139,6.24309,3203.6,3203.0,0.7797]
[1737637245439,3.12153,3203.6,3203.0,3.90176]
[1737637245638,3.12159,3203.5,3203.0,3.90176]
[1737637245961,3.12159,3203.5,3203.1,0.390176]
[1737637247461,3.12159,3203.5,3203.0,0.7797]
[1737637247620,3.12159,3203.5,3203.0,3.90175]
[1737637248757,6.24285,3203.7,3203.1,3.12195]
[1737637248966,3.12159,3203.5,3203.0,3.90175]
[1737637249865,3.12192,3203.2,3203.0,0.7797]
[1737637250768,3.12192,3203.2,3202.8,0.8121]
[1737637250935,3.12192,3203.2,3202.8,1.505549]
[1737637256870,3.12172,3203.4,3202.8,1.505549]
[1737637257074,6.24347,3203.4,3202.8,1.505549]
[1737637257277,3.12182,3203.3,3202.8,1.505549]
[1737637257638,3.12182,3203.3,3202.8,4.627809]
[1737637257840,3.12182,3203.3,3202.9,0.7627809]
[1737637260856,3.12192,3203.2,3202.9,0.7627809]
[1737637261179,3.12236,3202.8,3202.4,0.8021]
[1737637261380,3.12255,3202.6,3202.0,0.8058]
[1737637261878,3.12257,3202.5,3202.0,3.8058]
[1737637262172,3.12257,3202.5,3202.0,6.92882]
[1737637262876,3.12257,3202.5,3202.0,0.8058]
[1737637263090,3.12285,3202.2,3201.7,7.16408506]
[1737637263284,3.12319,3201.9,3201.7,4.04078506]
[1737637263434,3.12319,3201.9,3201.7,3.23018506]
[1737637263642,3.12324,3201.8,3201.7,3.23018506]
[1737637263842,3.12277,3202.3,3201.8,0.8002]
[1737637264038,3.12238,3202.7,3201.9,0.71537151]
[1737637264236,3.12128,3203.9,3202.3,0.7919]
[1737637264237,0.7554,3203.4,3202.3,0.7919]
[1737637264579,3.12204,3203.1,3202.4,3.12258]
[1737637264782,3.12187,3203.2,3202.6,3.12239]
[1737637264976,3.12187,3203.2,3202.7,0.8016]
[1737637265139,3.12187,3203.2,3202.7,1.506238]
[1737637266576,3.12168,3203.4,3202.8,3.12221]
[1737637267380,3.12168,3203.4,3202.7,1.506238]
[1737637267590,3.12182,3203.3,3202.7,4.628568]
[1737637269277,3.12182,3203.3,3202.7,1.506238]
[1737637269703,3.1219,3203.2,3202.7,1.506238]
[1737637271283,3.12198,3203.1,3202.7,0.8016]
[1737637271467,3.12222,3202.9,3202.7,0.8016]
[1737637271670,3.12198,3203.1,3202.7,0.8016]
[1737637271893,3.12162,3203.5,3202.7,0.8016]
[1737637272093,8.51139,3203.7,3203.1,3.12195]
[1737637272405,3.12139,3203.7,3203.2,3.87316]
[1737637272607,3.1212,3203.9,3203.4,3.12166]
[1737637272774,3.12113,3204.0,3203.4,3.12161]
[1737637273471,3.12101,3204.1,3203.4,6.24322]
[1737637273671,3.12101,3204.1,3203.5,3.12157]
[1737637274279,3.12083,3204.3,3203.6,3.12148]
[1737637274607,3.12062,3204.5,3203.7,0.8074]
[1737637274806,3.12062,3204.5,3203.7,3.92874]
[1737637275010,3.12062,3204.5,3203.9,3.12113]
[1737637275486,3.12044,3204.7,3203.7,0.8074]
[1737637275487,3.12101,3204.1,3203.7,0.8074]
[1737637275810,3.91983,3204.3,3203.7,0.8074]
[1737637276186,3.121,3204.1,3203.7,0.8074]
[1737637277321,3.121,3204.2,3203.7,0.8074]
[1737637279090,3.12102,3204.1,3203.7,0.8074]
[1737637279420,3.12085,3204.3,3203.7,0.8074]
[1737637280201,3.12064,3204.5,3203.7,4.321618]
[1737637280402,3.12064,3204.5,3203.9,3.12112]
[1737637281616,3.12074,3204.4,3203.7,7.442978]
[1737637281822,6.2018,3204.8,3203.7,1.200288]
[1737637282024,3.12101,3204.1,3203.7,0.8074]
[1737637282195,6.2421,3204.1,3203.7,0.8074]
[1737637282401,3.12129,3203.8,3203.7,0.8074]
[1737637282601,3.12143,3203.7,3203.5,0.8132]
[1737637283310,3.12129,3203.8,3203.5,0.8132]
[1737637283512,3.12143,3203.7,3203.5,0.8132]
[1737637284311,3.12129,3203.8,3203.5,0.8132]
[1737637284515,3.12148,3203.6,3203.5,0.8132]
[1737637284832,3.12148,3203.6,3203.2,0.7933]
[1737637285126,3.12159,3203.5,3203.2,0.79115586]
[1737637285293,3.12148,3203.6,3203.2,0.79115586]
[1737637286999,3.12131,3203.8,3203.2,0.79115586]
[1737637287194,3.12127,3203.9,3203.2,3.91294586]
[1737637287401,3.12114,3204.0,3203.4,3.12166]
[1737637287615,3.12075,3204.4,3203.8,3.12128]
[1737637287800,3.12062,3204.5,3203.9,3.91441]
[1737637288014,3.12055,3204.6,3204.0,3.12108]
[1737637288220,3.12035,3204.8,3204.0,3.12108]
[1737637288414,3.12024,3204.9,3204.2,3.91412]
[1737637288614,3.12032,3204.8,3204.2,3.91412]
[1737637288818,3.12024,3204.9,3204.3,3.1208]
[1737637289234,3.12024,3204.9,3204.2,0.7933]
[1737637289235,3.12036,3204.8,3204.2,0.7933]
[1737637289393,3.12036,3204.8,3204.2,3.91418]
[1737637289599,3.12036,3204.8,3204.3,0.4226288]
[1737637289929,3.12006,3205.1,3204.3,3.38950517]
[1737637290132,3.12006,3205.1,3204.4,3.12062]
[1737637290342,3.12006,3205.1,3204.5,3.12054]
[1737637291139,3.11967,3205.5,3204.3,3.38950517]
[1737637291355,3.11987,3205.3,3204.7,3.12038]
[1737637291637,3.11987,3205.3,3204.6,3.1205]
[1737637291795,3.11987,3205.3,3204.4,4.29934052]
[1737637291796,3.11973,3205.4,3204.4,1.17868052]
[1737637292005,3.11973,3205.4,3204.4,0.7604]
[1737637292006,3.12039,3204.8,3204.4,0.7604]
[1737637292746,3.12019,3205.0,3204.4,0.7604]
[1737637292949,6.2404,3205.0,3204.4,0.7604]
[1737637293450,3.12019,3205.0,3204.4,0.7604]
[1737637293612,3.12019,3205.0,3204.4,3.8811]
[1737637293815,3.12019,3205.0,3204.4,4.581297]
[1737637294116,3.11996,3205.2,3204.6,3.12043]
[1737637295263,3.11984,3205.3,3204.7,3.90046]
[1737637295856,3.11975,3205.4,3204.8,3.12029]
[1737637296061,3.11975,3205.4,3204.9,3.510259]
[1737637296562,8.50959,3205.6,3205.0,3.12009]
[1737637296761,8.50959,3205.6,3205.1,0.8184]
[1737637297160,5.39,3205.6,3205.2,3.11992]
[1737637297665,5.39,3205.6,3205.3,3.11975]
[1737637297861,3.11935,3205.8,3205.4,0.623967]
[1737637298066,3.11918,3206.0,3205.4,0.623967]
[1737637298229,3.11918,3206.0,3205.4,3.743697]
[1737637298423,3.11918,3206.0,3205.5,3.11962]
[1737637298662,0.7546,3206.7,3205.6,0.765]
[1737637298970,3.11863,3206.6,3206.0,0.765]
[1737637299129,6.23682,3206.8,3206.1,3.11904]
[1737637299324,3.11827,3206.9,3206.2,3.11894]
[1737637299570,3.11839,3206.8,3206.2,3.11894]
[1737637300691,8.50818,3207.0,3206.1,2.96687637]
[1737637300869,3.31996182,3207.4,3206.3,0.765]
[1737637301180,3.11796,3207.3,3206.6,3.11849]
[1737637301472,3.11796,3207.3,3206.7,0.765]
[1737637301782,3.11796,3207.3,3206.7,3.88344]
[1737637301941,8.5077,3207.5,3206.7,0.765]
[1737637301942,5.39,3207.5,3206.7,0.765]
[1737637302127,5.39,3207.5,3207.0,3.11809]
[1737637302329,3.1175,3207.7,3207.0,3.11809]
[1737637302564,3.11761,3207.6,3207.0,3.11809]
[1737637303063,3.1175,3207.7,3207.0,3.11809]
[1737637303243,3.11761,3207.6,3207.0,3.11809]
[1737637303672,3.1177,3207.5,3206.7,3.88337]
[1737637303869,3.1177,3207.5,3206.9,3.11821]
[1737637305886,3.1177,3207.5,3206.8,0.688337]
[1737637306045,3.1177,3207.5,3206.8,3.806617]
[1737637306448,3.1178,3207.4,3206.8,3.806617]
[1737637306645,3.1177,3207.5,3206.8,3.806617]
[1737637306966,3.1177,3207.5,3206.9,0.4571617]
[1737637307911,3.11763,3207.6,3207.0,3.11817]
[1737637308593,3.11763,3207.6,3207.1,0.7978]
[1737637308769,3.11771,3207.5,3207.1,0.7978]
[1737637309089,3.11792,3207.3,3207.1,0.7978]
[1737637309488,3.11723,3208.0,3207.2,3.11789]
[1737637309668,3.11731,3207.9,3207.3,0.68825664]
[1737637310204,3.11723,3208.0,3207.3,0.68825664]
[1737637310411,3.11743,3207.8,3207.3,0.68825664]
[1737637312008,3.11723,3208.0,3207.3,3.80612664]
[1737637312205,3.11723,3208.0,3207.4,0.7996]
[1737637312519,8.50704,3208.2,3207.6,3.11755]
[1737637314315,3.11704,3208.2,3207.6,3.11755]
[1737637314490,3.11711,3208.1,3207.6,3.11755]
[1737637314697,3.11704,3208.2,3207.6,3.11755]
[1737637315585,3.11712,3208.1,3207.6,3.11755]
[1737637315787,3.11698,3208.3,3207.7,0.35781227]
[1737637316018,3.11698,3208.3,3207.8,0.7663]
[1737637316185,3.11704,3208.2,3207.8,0.7663]
[1737637316827,3.11713,3208.1,3207.8,0.7663]
[1737637319117,3.11721,3208.0,3207.8,0.7663]
[1737637321140,3.11759,3207.6,3207.3,1.47375664]
[1737637321438,3.11772,3207.5,3207.3,0.7855]
[1737637322006,3.11759,3207.6,3207.3,0.7855]
[1737637322422,3.11752,3207.7,3207.3,0.7855]
[1737637322837,3.11759,3207.6,3207.3,0.7855]
[1737637323241,3.11779,3207.4,3206.9,0.828]
[1737637323407,3.11796,3207.3,3206.9,1.85602064]
[1737637323615,0.7969,3207.6,3206.6,3.1185]
[1737637323616,3.1181,3207.1,3206.6,3.1185]
[1737637323823,3.11834,3206.9,3206.6,0.7648]
[1737637324027,3.11833,3206.9,3206.4,0.368]
[1737637324275,3.1185,3206.7,3206.3,0.7624]
[1737637324434,3.11868,3206.5,3206.3,0.7624]
[1737637324814,3.11893,3206.3,3205.9,0.8053]
[1737637326551,3.11893,3206.3,3205.9,1.197769]
[1737637327564,3.11911,3206.1,3205.4,0.796]
[1737637327766,3.11935,3205.8,3205.4,0.796]
[1737637329574,3.11922,3206.0,3205.4,0.796]
[1737637329775,3.11882,3206.4,3205.6,2.96687637]
[1737637330074,3.11882,3206.4,3205.8,3.92458]
[1737637330264,3.11817,3207.0,3206.2,2.96687637]
[1737637330466,3.11844,3206.8,3206.3,0.7588]
[1737637330899,3.11847,3206.7,3206.3,0.7588]
[1737637331569,3.11828,3206.9,3206.3,3.87765]
[1737637331898,3.11828,3206.9,3206.4,0.699659]
[1737637332303,0.833,3207.1,3206.4,0.699659]
[1737637332500,3.11825,3207.0,3206.4,3.818409]
[1737637332671,3.1183,3206.9,3206.4,0.699659]
[1737637333002,3.11825,3207.0,3206.4,3.818399]
[1737637333204,3.11825,3207.0,3206.5,0.4577199]
[1737637334500,3.11801,3207.2,3206.5,3.5763099]
[1737637334697,3.11801,3207.2,3206.5,0.4577199]
[1737637334885,3.11819,3207.0,3206.5,0.4577199]
[1737637336201,6.1706,3207.8,3206.6,0.8172]
[1737637336503,3.11784,3207.4,3206.8,3.11836]
[1737637336823,3.11784,3207.4,3206.8,3.11828]
[1737637338005,3.11784,3207.4,3206.8,6.23658]
[1737637338207,3.11784,3207.4,3206.8,3.11828]
[1737637338603,3.11771,3207.5,3206.8,3.11828]
[1737637338804,3.11771,3207.5,3206.9,3.47248596]
[1737637339811,5.39,3208.3,3207.6,3.11752]
[1737637339979,3.11675,3208.5,3207.9,3.1173]
[1737637340512,3.93904,3208.7,3207.9,3.1173]
[1737637340513,0.8225,3208.7,3207.9,3.1173]
[1737637340875,0.8225,3208.7,3208.0,3.1172]
[1737637341104,1.516383,3208.7,3208.0,3.1172]
[1737637341412,4.632913,3208.7,3207.8,3.11733]
[1737637341808,4.632913,3208.7,3207.9,3.11729]
[1737637342001,1.516383,3208.7,3207.9,3.11729]
[1737637342311,0.8225,3208.7,3207.9,3.11729]
[1737637342510,0.8225,3208.7,3208.1,3.11707]
[1737637342714,0.8225,3208.7,3208.2,3.11697]
[1737637342913,0.8199,3209.1,3208.4,3.11678]
[1737637343228,0.8199,3209.1,3208.5,3.11669]
[1737637343426,0.8199,3209.5,3208.5,0.701417]
[1737637343576,0.8199,3209.5,3209.0,3.11615]
[1737637343791,0.8199,3209.5,3209.2,3.11603]
[1737637344526,5.39,3210.1,3209.0,3.11623]
[1737637344758,5.39,3210.1,3209.4,3.11583]
[1737637344759,8.50517,3210.1,3209.4,3.11583]
[1737637345051,3.11546,3209.8,3209.1,3.11605]
[1737637345211,3.94549,3209.7,3209.1,3.11605]
[1737637345412,3.8299,3209.7,3209.1,3.11605]
[1737637345718,3.8299,3209.7,3209.2,3.11603]
[1737637346120,3.0,3209.9,3209.3,3.11588]
[1737637346321,0.7875487,3209.8,3209.2,3.11603]
[1737637346732,0.7875487,3209.8,3209.3,3.11592]
[1737637347258,0.7875487,3209.8,3209.2,3.11602]
[1737637347455,1.760207,3210.0,3209.5,3.11572]
[1737637348055,5.39,3210.1,3209.3,3.94914]
[1737637348395,5.39,3210.1,3209.8,3.11545]
[1737637349103,5.39,3210.1,3209.7,3.11546]
[1737637349309,5.39,3210.1,3209.8,3.11545]
[1737637350651,5.39,3210.1,3209.7,3.11546]
[1737637351149,5.39,3210.1,3209.8,3.11544]
[1737637351338,5.39,3210.1,3209.7,6.23095]
[1737637351522,5.39,3210.1,3209.8,3.1154]
[1737637352940,3.11482,3210.5,3209.8,3.1154]
[1737637353258,3.11488,3210.4,3209.8,3.1154]
[1737637354006,3.11488,3210.4,3209.6,3.11562]
[1737637354218,3.11488,3210.4,3209.7,3.11555]
[1737637356365,0.8248,3210.3,3209.7,3.11555]
[1737637356722,0.8248,3210.3,3209.8,3.11544]
[1737637359644,0.8248,3210.3,3209.6,3.11562]
[1737637359972,3.93979,3210.3,3209.6,3.11557]
[1737637360266,3.93979,3210.3,3209.7,3.11554]
[1737637363570,0.8248,3210.3,3209.7,3.11554]
[1737637363746,0.8248,3210.3,3209.8,3.11545]
[1737637364548,3.93977,3210.3,3209.7,0.311554]
[1737637364872,3.93977,3210.3,3209.5,3.11569]
[1737637366398,3.93977,3210.3,3209.7,3.11551]
[1737637368878,0.8248,3210.3,3209.7,3.11546]
[1737637369174,3.93979,3210.3,3209.7,3.11546]
[1737637370485,3.11478,3210.5,3209.7,3.11546]
[1737637370641,0.7899,3210.6,3210.2,3.11506]
[1737637371009,0.7899,3210.6,3210.3,3.11496]
[1737637371279,0.7899,3210.6,3210.2,3.11506]
[1737637371280,0.7899,3210.6,3210.1,3.11509]